[Event "Early Titled Tuesday Blitz | February 8 2022"]
[White "Dauner, Benedikt"]
[Black "Goryachkina, Aleksandra"]
[WhiteFideId "16225899"]
[BlackFideId "4147103"]
[WhiteElo "2230"]
[BlackElo "2426"]
[Result "0-1"]
[Round "10"]
[TimeControl "180+1"]
[Date "2022.02.08"]
[WhiteClock "0:00:02"]
[BlackClock "0:00:04"]

1. b4 {[%clk 0:03:00]}  d5 {[%clk 0:02:58]} 2. Bb2 {[%clk 0:03:00]}  c6 {[%clk 0:02:58]} 3. e3 {[%clk 0:03:00]}  Qb6 {[%clk 0:02:53]} 4. a3 {[%clk 0:02:58]}  a5 {[%clk 0:02:53]} 5. Nf3 {[%clk 0:02:39]}  axb4 {[%clk 0:02:50]} 6. Bd4 {[%clk 0:02:38]}  Qc7 {[%clk 0:02:32]} 7. axb4 {[%clk 0:02:36]}  Rxa1 {[%clk 0:02:32]} 8. Bxa1 {[%clk 0:02:37]}  Nd7 {[%clk 0:02:31]} 9. d4 {[%clk 0:02:30]}  e5 {[%clk 0:02:01]} 10. c3 {[%clk 0:02:10]}  exd4 {[%clk 0:01:58]} 11. exd4 {[%clk 0:01:57]}  Bd6 {[%clk 0:01:57]} 12. Bd3 {[%clk 0:01:56]}  Ngf6 {[%clk 0:01:53]} 13. O-O {[%clk 0:01:55]}  O-O {[%clk 0:01:53]} 14. Nbd2 {[%clk 0:01:53]}  Re8 {[%clk 0:01:49]} 15. Re1 {[%clk 0:01:51]}  Qd8 {[%clk 0:01:37]} 16. Re2 {[%clk 0:01:38]}  h6 {[%clk 0:01:30]} 17. Qe1 {[%clk 0:01:36]}  Rxe2 {[%clk 0:01:20]} 18. Qxe2 {[%clk 0:01:37]}  Qe8 {[%clk 0:01:14]} 19. Qxe8+ {[%clk 0:01:36]}  Nxe8 {[%clk 0:01:15]} 20. Nb3 {[%clk 0:01:32]}  b6 {[%clk 0:01:13]} 21. Bb2 {[%clk 0:01:31]}  Kf8 {[%clk 0:01:10]} 22. Bc1 {[%clk 0:01:29]}  Ke7 {[%clk 0:01:10]} 23. Kf1 {[%clk 0:01:26]}  Nc7 {[%clk 0:01:06]} 24. Nh4 {[%clk 0:01:24]}  Nf6 {[%clk 0:00:55]} 25. Nf5+ {[%clk 0:01:21]}  Bxf5 {[%clk 0:00:55]} 26. Bxf5 {[%clk 0:01:22]}  Nb5 {[%clk 0:00:40]} 27. Bd2 {[%clk 0:01:21]}  Ne4 {[%clk 0:00:34]} 28. Bxe4 {[%clk 0:01:20]}  dxe4 {[%clk 0:00:35]} 29. c4 {[%clk 0:01:13]}  Na3 {[%clk 0:00:35]} 30. c5 {[%clk 0:01:13]}  Bc7 {[%clk 0:00:35]} 31. Nc1 {[%clk 0:00:27]}  Ke6 {[%clk 0:00:29]} 32. Ne2 {[%clk 0:00:22]}  Kd5 {[%clk 0:00:25]} 33. Bf4 {[%clk 0:00:06]}  Bd8 {[%clk 0:00:16]} 34. Bd6 {[%clk 0:00:05]}  bxc5 {[%clk 0:00:13]} 35. bxc5 {[%clk 0:00:04]}  f5 {[%clk 0:00:11]} 36. Nf4+ {[%clk 0:00:03]}  Kc4 {[%clk 0:00:09]} 37. Ne6 {[%clk 0:00:04]}  Bf6 {[%clk 0:00:09]} 38. Bf8 {[%clk 0:00:03]}  g6 {[%clk 0:00:04]} 39. Bg7 {[%clk 0:00:04]}  Bxg7 {[%clk 0:00:04]} 40. Nxg7 {[%clk 0:00:04]}  Kxd4 {[%clk 0:00:05]} 41. Ne6+ {[%clk 0:00:04]}  Kd5 {[%clk 0:00:05]} 42. Nf8 {[%clk 0:00:04]}  g5 {[%clk 0:00:05]} 43. Nd7 {[%clk 0:00:04]}  Nc2 {[%clk 0:00:05]} 44. h4 {[%clk 0:00:03]}  Nd4 {[%clk 0:00:04]} 45. h5 {[%clk 0:00:03]}  Ne6 {[%clk 0:00:04]} 46. Nf6+ {[%clk 0:00:03]}  Ke5 {[%clk 0:00:04]} 47. Ng8 {[%clk 0:00:04]}  Nf4 {[%clk 0:00:03]} 48. Nxh6 {[%clk 0:00:04]}  Nxh5 {[%clk 0:00:03]} 49. Nf7+ {[%clk 0:00:04]}  Kd5 {[%clk 0:00:03]} 50. Nxg5 {[%clk 0:00:04]}  Kxc5 {[%clk 0:00:04]} 51. Ke2 {[%clk 0:00:04]}  Nf4+ {[%clk 0:00:04]} 52. Kf1 {[%clk 0:00:04]}  Kd4 {[%clk 0:00:04]} 53. g3 {[%clk 0:00:05]}  Nd3 {[%clk 0:00:03]} 54. Ke2 {[%clk 0:00:04]}  c5 {[%clk 0:00:03]} 55. Ne6+ {[%clk 0:00:05]}  Ke5 {[%clk 0:00:03]} 56. Nc7 {[%clk 0:00:04]}  c4 {[%clk 0:00:03]} 57. Nb5 {[%clk 0:00:04]}  Kd5 {[%clk 0:00:03]} 58. Nc3+ {[%clk 0:00:04]}  Kc5 {[%clk 0:00:04]} 59. Ke3 {[%clk 0:00:04]}  Kb4 {[%clk 0:00:03]} 60. Nd5+ {[%clk 0:00:04]}  Kb3 {[%clk 0:00:04]} 61. Kd4 {[%clk 0:00:04]}  Nxf2 {[%clk 0:00:04]} 62. Ke5 {[%clk 0:00:03]}  c3 {[%clk 0:00:03]} 63. Kxf5 {[%clk 0:00:02]}  c2 {[%clk 0:00:03]} 64. Ne3 {[%clk 0:00:02]}  c1=Q {[%clk 0:00:04]} 65. Kf4 {[%clk 0:00:02]}  Nd3+ {[%clk 0:00:04]} 66. Kxe4 {[%clk 0:00:02]}  Nf2+ {[%clk 0:00:03]} 67. Kf3 {[%clk 0:00:03]}  Nd1 {[%clk 0:00:03]} 68. Nf5 {[%clk 0:00:02]}  Qc6+ {[%clk 0:00:03]} 69. Kf4 {[%clk 0:00:02]}  Qc4+ {[%clk 0:00:03]} 70. Ke5 {[%clk 0:00:02]}  Nf2 {[%clk 0:00:03]} 71. Kf6 {[%clk 0:00:02]}  Ne4+ {[%clk 0:00:03]} 72. Kg6 {[%clk 0:00:02]}  Qc6+ {[%clk 0:00:03]} 73. Kh5 {[%clk 0:00:02]}  Qd5 {[%clk 0:00:03]} 74. Kg4 {[%clk 0:00:03]}  Nf6+ {[%clk 0:00:03]} 75. Kg5 {[%clk 0:00:03]}  Qe5 {[%clk 0:00:03]} 76. g4 {[%clk 0:00:03]}  Ne4+ {[%clk 0:00:04]} 77. Kg6 {[%clk 0:00:03]}  Kc3 {[%clk 0:00:04]} 78. Nh6 {[%clk 0:00:02]}  Qf6+ {[%clk 0:00:04]} 79. Kh7 {[%clk 0:00:02]}  Ng5+ {[%clk 0:00:04]} 80. Kg8 {[%clk 0:00:02]}  Kd3 {[%clk 0:00:04]} 81. Nf5 {[%clk 0:00:02]}  Qf7+ {[%clk 0:00:04]} 82. Kh8 {[%clk 0:00:02]}  Qh7# {[%clk 0:00:04]} 0-1


[Site "https://www.chess.com"]

[Event "Early Titled Tuesday Blitz | February 8 2022"]
[White "Demchenko, Anton"]
[Black "Costachi, Mihnea"]
[WhiteFideId "4160258"]
[BlackFideId "1217518"]
[WhiteElo "2539"]
[BlackElo "2464"]
[Result "1-0"]
[Round "10"]
[TimeControl "180+1"]
[Date "2022.02.08"]
[WhiteClock "0:00:07"]
[BlackClock "0:00:03"]

1. e4 {[%clk 0:03:00]}  e5 {[%clk 0:03:00]} 2. Nf3 {[%clk 0:03:01]}  Nc6 {[%clk 0:03:00]} 3. Bc4 {[%clk 0:03:01]}  Bc5 {[%clk 0:02:59]} 4. d3 {[%clk 0:03:02]}  Nf6 {[%clk 0:03:00]} 5. Bg5 {[%clk 0:03:02]}  h6 {[%clk 0:02:59]} 6. Bh4 {[%clk 0:03:02]}  Be7 {[%clk 0:02:57]} 7. Bg3 {[%clk 0:03:02]}  d6 {[%clk 0:02:57]} 8. a4 {[%clk 0:03:03]}  Be6 {[%clk 0:02:52]} 9. Bxe6 {[%clk 0:03:03]}  fxe6 {[%clk 0:02:52]} 10. c3 {[%clk 0:03:03]}  O-O {[%clk 0:02:52]} 11. O-O {[%clk 0:03:03]}  Qe8 {[%clk 0:02:51]} 12. Qb3 {[%clk 0:03:03]}  Qd7 {[%clk 0:02:47]} 13. Nbd2 {[%clk 0:03:01]}  Nh5 {[%clk 0:02:46]} 14. h3 {[%clk 0:03:01]}  Nf4 {[%clk 0:02:43]} 15. Bxf4 {[%clk 0:02:59]}  Rxf4 {[%clk 0:02:43]} 16. a5 {[%clk 0:02:57]}  Raf8 {[%clk 0:02:40]} 17. Qxb7 {[%clk 0:02:35]}  Rb8 {[%clk 0:02:38]} 18. Qa6 {[%clk 0:02:35]}  Rxb2 {[%clk 0:02:39]} 19. Rfb1 {[%clk 0:02:32]}  Rxb1+ {[%clk 0:02:36]} 20. Rxb1 {[%clk 0:02:33]}  Rf8 {[%clk 0:02:17]} 21. Rb7 {[%clk 0:02:29]}  Ra8 {[%clk 0:02:09]} 22. d4 {[%clk 0:02:16]}  exd4 {[%clk 0:02:08]} 23. cxd4 {[%clk 0:02:05]}  Nb8 {[%clk 0:01:50]} 24. Qc4 {[%clk 0:01:58]}  Bd8 {[%clk 0:01:50]} 25. d5 {[%clk 0:01:39]}  e5 {[%clk 0:01:00]} 26. a6 {[%clk 0:01:32]}  Kh7 {[%clk 0:00:53]} 27. Nb3 {[%clk 0:01:31]}  Qc8 {[%clk 0:00:47]} 28. Na5 {[%clk 0:01:31]}  Nd7 {[%clk 0:00:48]} 29. Nb3 {[%clk 0:01:17]}  Nb6 {[%clk 0:00:39]} 30. Qc6 {[%clk 0:01:15]}  Nd7 {[%clk 0:00:31]} 31. Nfd2 {[%clk 0:01:01]}  Nb8 {[%clk 0:00:23]} 32. Qc4 {[%clk 0:00:55]}  c5 {[%clk 0:00:20]} 33. Qb5 {[%clk 0:00:49]}  Bc7 {[%clk 0:00:16]} 34. Nc4 {[%clk 0:00:47]}  Kh8 {[%clk 0:00:10]} 35. Kh2 {[%clk 0:00:42]}  Kh7 {[%clk 0:00:10]} 36. g3 {[%clk 0:00:43]}  Kh8 {[%clk 0:00:11]} 37. Kg2 {[%clk 0:00:43]}  Kh7 {[%clk 0:00:11]} 38. Nba5 {[%clk 0:00:35]}  Bxa5 {[%clk 0:00:10]} 39. Qxa5 {[%clk 0:00:35]}  Nd7 {[%clk 0:00:04]} 40. Nxd6 {[%clk 0:00:32]}  Qd8 {[%clk 0:00:04]} 41. Qxd8 {[%clk 0:00:27]}  Rxd8 {[%clk 0:00:04]} 42. Nf7 {[%clk 0:00:28]}  Rc8 {[%clk 0:00:03]} 43. Rxd7 {[%clk 0:00:19]}  c4 {[%clk 0:00:03]} 44. Nd6 {[%clk 0:00:19]}  Rc5 {[%clk 0:00:02]} 45. Nxc4 {[%clk 0:00:18]}  Rxc4 {[%clk 0:00:03]} 46. Kf3 {[%clk 0:00:18]}  Rc3+ {[%clk 0:00:02]} 47. Kg4 {[%clk 0:00:18]}  Kg6 {[%clk 0:00:01]} 48. Rd6+ {[%clk 0:00:08]}  Kf7 {[%clk 0:00:01]} 49. f4 {[%clk 0:00:08]}  exf4 {[%clk 0:00:01]} 50. gxf4 {[%clk 0:00:09]}  Rc4 {[%clk 0:00:02]} 51. e5 {[%clk 0:00:09]}  Ra4 {[%clk 0:00:03]} 52. Rc6 {[%clk 0:00:09]}  Ke7 {[%clk 0:00:02]} 53. Kf5 {[%clk 0:00:08]}  Kf7 {[%clk 0:00:03]} 54. h4 {[%clk 0:00:08]}  Kg8 {[%clk 0:00:04]} 55. h5 {[%clk 0:00:08]}  Kf8 {[%clk 0:00:04]} 56. d6 {[%clk 0:00:08]}  Kf7 {[%clk 0:00:04]} 57. e6+ {[%clk 0:00:08]}  Kg8 {[%clk 0:00:03]} 58. Rc8+ {[%clk 0:00:07]}  Kh7 {[%clk 0:00:03]} 59. d7 {[%clk 0:00:08]}  Ra5+ {[%clk 0:00:04]} 60. Ke4 {[%clk 0:00:08]}  Ra4+ {[%clk 0:00:04]} 61. Kf3 {[%clk 0:00:09]}  Ra3+ {[%clk 0:00:04]} 62. Kg4 {[%clk 0:00:10]}  Rd3 {[%clk 0:00:02]} 63. d8=Q {[%clk 0:00:10]}  Rd7 {[%clk 0:00:03]} 64. Qh8# {[%clk 0:00:07]} 1-0


[Site "https://www.chess.com"]

[Event "Early Titled Tuesday Blitz | February 8 2022"]
[White "Demin, Vladimir"]
[Black "Bugayev, Vladimir"]
[WhiteFideId "4167457"]
[BlackFideId "30901480"]
[WhiteElo "2481"]
[BlackElo "2370"]
[Result "1-0"]
[Round "10"]
[TimeControl "180+1"]
[Date "2022.02.08"]
[WhiteClock "0:01:00"]
[BlackClock "0:00:02"]

1. d4 {[%clk 0:02:52]}  Nf6 {[%clk 0:02:59]} 2. g4 {[%clk 0:02:51]}  d5 {[%clk 0:02:55]} 3. g5 {[%clk 0:02:51]}  Ne4 {[%clk 0:02:55]} 4. f3 {[%clk 0:02:52]}  Nd6 {[%clk 0:02:55]} 5. Nc3 {[%clk 0:02:52]}  c6 {[%clk 0:02:49]} 6. e4 {[%clk 0:02:52]}  e6 {[%clk 0:02:49]} 7. Be3 {[%clk 0:02:51]}  b5 {[%clk 0:02:46]} 8. Bd3 {[%clk 0:02:47]}  Qa5 {[%clk 0:02:42]} 9. Qd2 {[%clk 0:02:45]}  b4 {[%clk 0:02:33]} 10. Nce2 {[%clk 0:02:45]}  Nc4 {[%clk 0:02:32]} 11. Bxc4 {[%clk 0:02:44]}  dxc4 {[%clk 0:02:33]} 12. Kf2 {[%clk 0:02:40]}  Be7 {[%clk 0:02:26]} 13. h4 {[%clk 0:02:39]}  Nd7 {[%clk 0:02:16]} 14. Nh3 {[%clk 0:02:37]}  Qc7 {[%clk 0:01:47]} 15. h5 {[%clk 0:02:26]}  g6 {[%clk 0:01:42]} 16. Nhf4 {[%clk 0:02:23]}  Rg8 {[%clk 0:01:10]} 17. hxg6 {[%clk 0:02:18]}  hxg6 {[%clk 0:01:11]} 18. Rh7 {[%clk 0:02:16]}  Nf8 {[%clk 0:01:07]} 19. Rh4 {[%clk 0:02:05]}  a5 {[%clk 0:01:07]} 20. Rg1 {[%clk 0:02:02]}  Ba6 {[%clk 0:00:54]} 21. Ng3 {[%clk 0:01:56]}  O-O-O {[%clk 0:00:54]} 22. c3 {[%clk 0:01:56]}  e5 {[%clk 0:00:52]} 23. Nfe2 {[%clk 0:01:55]}  exd4 {[%clk 0:00:49]} 24. cxd4 {[%clk 0:01:53]}  Ne6 {[%clk 0:00:41]} 25. Nf4 {[%clk 0:01:41]}  Nxd4 {[%clk 0:00:35]} 26. Bxd4 {[%clk 0:01:40]}  c5 {[%clk 0:00:36]} 27. Nd5 {[%clk 0:01:39]}  Rxd5 {[%clk 0:00:31]} 28. exd5 {[%clk 0:01:40]}  cxd4 {[%clk 0:00:31]} 29. Ne4 {[%clk 0:01:40]}  d3 {[%clk 0:00:29]} 30. Rh7 {[%clk 0:01:35]}  Bc5+ {[%clk 0:00:26]} 31. Nxc5 {[%clk 0:01:34]}  Qxc5+ {[%clk 0:00:26]} 32. Qe3 {[%clk 0:01:34]}  Qxd5 {[%clk 0:00:18]} 33. Rh4 {[%clk 0:01:10]}  Bb7 {[%clk 0:00:16]} 34. Rd4 {[%clk 0:01:09]}  Qc6 {[%clk 0:00:14]} 35. Rgg4 {[%clk 0:01:06]}  Re8 {[%clk 0:00:14]} 36. Rxc4 {[%clk 0:01:02]}  Rxe3 {[%clk 0:00:09]} 37. Rxc6+ {[%clk 0:01:01]}  Bxc6 {[%clk 0:00:10]} 38. Kxe3 {[%clk 0:01:01]}  Bb5 {[%clk 0:00:07]} 39. Rf4 {[%clk 0:01:01]}  Be8 {[%clk 0:00:04]} 40. Kxd3 {[%clk 0:01:01]}  Kd7 {[%clk 0:00:05]} 41. Rf6 {[%clk 0:00:59]}  Ke7 {[%clk 0:00:02]} 42. Kd4 {[%clk 0:01:00]} 1-0


[Site "https://www.chess.com"]

[Event "Early Titled Tuesday Blitz | February 8 2022"]
[White "Dew, Brian"]
[Black "Baches Garcia, Guillermo"]
[WhiteFideId "6000495"]
[BlackFideId "2209764"]
[WhiteElo "2118"]
[BlackElo "2450"]
[Result "1/2-1/2"]
[Round "10"]
[TimeControl "180+1"]
[Date "2022.02.08"]
[WhiteClock "0:01:25"]
[BlackClock "0:00:59"]

1. e4 {[%clk 0:02:56]}  c5 {[%clk 0:02:59]} 2. Nf3 {[%clk 0:02:56]}  d6 {[%clk 0:03:00]} 3. c3 {[%clk 0:02:55]}  Nf6 {[%clk 0:03:00]} 4. Bd3 {[%clk 0:02:52]}  b6 {[%clk 0:02:54]} 5. O-O {[%clk 0:02:51]}  Bb7 {[%clk 0:02:55]} 6. Re1 {[%clk 0:02:51]}  Nbd7 {[%clk 0:02:54]} 7. Bc2 {[%clk 0:02:51]}  c4 {[%clk 0:02:53]} 8. b3 {[%clk 0:02:49]}  b5 {[%clk 0:02:53]} 9. Na3 {[%clk 0:02:43]}  cxb3 {[%clk 0:02:44]} 10. axb3 {[%clk 0:02:42]}  a6 {[%clk 0:02:38]} 11. d4 {[%clk 0:02:42]}  e6 {[%clk 0:02:34]} 12. Nb1 {[%clk 0:02:38]}  Be7 {[%clk 0:02:32]} 13. Bf4 {[%clk 0:02:35]}  O-O {[%clk 0:02:24]} 14. c4 {[%clk 0:02:32]}  bxc4 {[%clk 0:02:16]} 15. bxc4 {[%clk 0:02:33]}  Rc8 {[%clk 0:02:12]} 16. Bd3 {[%clk 0:02:30]}  d5 {[%clk 0:01:54]} 17. exd5 {[%clk 0:02:26]}  exd5 {[%clk 0:01:53]} 18. c5 {[%clk 0:02:26]}  Ne4 {[%clk 0:01:47]} 19. Nbd2 {[%clk 0:02:23]}  f5 {[%clk 0:01:38]} 20. Bxa6 {[%clk 0:02:22]}  Bxa6 {[%clk 0:01:33]} 21. Rxa6 {[%clk 0:02:23]}  Bf6 {[%clk 0:01:29]} 22. Qb3 {[%clk 0:02:14]}  Nb8 {[%clk 0:01:26]} 23. Rb6 {[%clk 0:02:07]}  Nc6 {[%clk 0:01:22]} 24. Nxe4 {[%clk 0:02:01]}  fxe4 {[%clk 0:01:21]} 25. Rxe4 {[%clk 0:01:58]}  Kh8 {[%clk 0:01:07]} 26. Re6 {[%clk 0:01:57]}  Nxd4 {[%clk 0:01:05]} 27. Nxd4 {[%clk 0:01:56]}  Bxd4 {[%clk 0:01:04]} 28. Be3 {[%clk 0:01:53]}  Bxc5 {[%clk 0:00:58]} 29. Bxc5 {[%clk 0:01:29]}  Rxc5 {[%clk 0:00:59]} 30. Re1 {[%clk 0:01:25]} 1/2-1/2


[Site "https://www.chess.com"]

[Event "Early Titled Tuesday Blitz | February 8 2022"]
[White "Erigaisi Arjun"]
[Black "Grandelius, Nils"]
[WhiteFideId "35009192"]
[BlackFideId "1710400"]
[WhiteElo "2745"]
[BlackElo "2617"]
[Result "1/2-1/2"]
[Round "10"]
[TimeControl "180+1"]
[Date "2022.02.08"]
[WhiteClock "0:00:07"]
[BlackClock "0:00:07"]

1. Nf3 {[%clk 0:03:00]}  d5 {[%clk 0:02:56]} 2. c4 {[%clk 0:03:00]}  e6 {[%clk 0:02:56]} 3. g3 {[%clk 0:03:00]}  dxc4 {[%clk 0:02:56]} 4. Bg2 {[%clk 0:03:00]}  a6 {[%clk 0:02:54]} 5. a4 {[%clk 0:02:57]}  Nc6 {[%clk 0:02:53]} 6. O-O {[%clk 0:02:57]}  e5 {[%clk 0:02:39]} 7. Nc3 {[%clk 0:02:34]}  Nf6 {[%clk 0:02:36]} 8. b3 {[%clk 0:02:29]}  cxb3 {[%clk 0:02:33]} 9. Qxb3 {[%clk 0:02:30]}  Bd6 {[%clk 0:02:32]} 10. d3 {[%clk 0:02:25]}  h6 {[%clk 0:02:31]} 11. Be3 {[%clk 0:02:19]}  O-O {[%clk 0:02:31]} 12. Rfc1 {[%clk 0:02:16]}  Be6 {[%clk 0:02:11]} 13. Qb2 {[%clk 0:02:06]}  Rb8 {[%clk 0:02:10]} 14. Nd2 {[%clk 0:02:03]}  Nd4 {[%clk 0:01:54]} 15. Bxd4 {[%clk 0:01:49]}  exd4 {[%clk 0:01:55]} 16. Nce4 {[%clk 0:01:50]}  Nxe4 {[%clk 0:01:49]} 17. Nxe4 {[%clk 0:01:50]}  Be7 {[%clk 0:01:40]} 18. a5 {[%clk 0:01:44]}  Bf5 {[%clk 0:01:08]} 19. Ra4 {[%clk 0:01:22]}  Bxe4 {[%clk 0:01:08]} 20. Bxe4 {[%clk 0:01:20]}  c5 {[%clk 0:01:05]} 21. Rb1 {[%clk 0:01:11]}  Bd6 {[%clk 0:01:03]} 22. Qc2 {[%clk 0:01:05]}  Qc7 {[%clk 0:00:54]} 23. Rb6 {[%clk 0:00:59]}  Rfe8 {[%clk 0:00:45]} 24. Qb3 {[%clk 0:00:50]}  Re7 {[%clk 0:00:39]} 25. Bf3 {[%clk 0:00:44]}  Qd8 {[%clk 0:00:36]} 26. Ra2 {[%clk 0:00:35]}  Bc7 {[%clk 0:00:33]} 27. Rxb7 {[%clk 0:00:34]}  Rxb7 {[%clk 0:00:33]} 28. Bxb7 {[%clk 0:00:33]}  Qb8 {[%clk 0:00:27]} 29. Bd5 {[%clk 0:00:31]}  Qd8 {[%clk 0:00:23]} 30. Qc4 {[%clk 0:00:19]}  Bxa5 {[%clk 0:00:20]} 31. Bf3 {[%clk 0:00:20]}  Qb6 {[%clk 0:00:15]} 32. Qa4 {[%clk 0:00:20]}  Bc3 {[%clk 0:00:14]} 33. Qxa6 {[%clk 0:00:20]}  Qxa6 {[%clk 0:00:15]} 34. Rxa6 {[%clk 0:00:21]}  g6 {[%clk 0:00:15]} 35. Rc6 {[%clk 0:00:20]}  Bb4 {[%clk 0:00:15]} 36. g4 {[%clk 0:00:19]}  Kg7 {[%clk 0:00:15]} 37. Kg2 {[%clk 0:00:18]}  Re6 {[%clk 0:00:15]} 38. Rc7 {[%clk 0:00:18]}  Re5 {[%clk 0:00:15]} 39. h4 {[%clk 0:00:18]}  Ba5 {[%clk 0:00:15]} 40. Ra7 {[%clk 0:00:17]}  Bd8 {[%clk 0:00:15]} 41. Kg3 {[%clk 0:00:14]}  Bf6 {[%clk 0:00:13]} 42. Rd7 {[%clk 0:00:11]}  Be7 {[%clk 0:00:13]} 43. Be4 {[%clk 0:00:09]}  Re6 {[%clk 0:00:09]} 44. Kf3 {[%clk 0:00:08]}  Bxh4 {[%clk 0:00:07]} 45. Kg2 {[%clk 0:00:08]}  Re7 {[%clk 0:00:06]} 46. Rxe7 {[%clk 0:00:08]}  Bxe7 {[%clk 0:00:06]} 47. Bd5 {[%clk 0:00:09]}  Bd6 {[%clk 0:00:07]} 48. Kf3 {[%clk 0:00:09]}  f5 {[%clk 0:00:07]} 49. gxf5 {[%clk 0:00:09]}  gxf5 {[%clk 0:00:08]} 50. Be6 {[%clk 0:00:09]}  Kf6 {[%clk 0:00:09]} 51. Bd7 {[%clk 0:00:09]}  Kg5 {[%clk 0:00:08]} 52. Be8 {[%clk 0:00:08]}  h5 {[%clk 0:00:08]} 53. Kg2 {[%clk 0:00:07]}  h4 {[%clk 0:00:08]} 54. Kh3 {[%clk 0:00:08]}  Bf4 {[%clk 0:00:09]} 55. Bd7 {[%clk 0:00:08]}  Bd2 {[%clk 0:00:09]} 56. Bc8 {[%clk 0:00:08]}  Be1 {[%clk 0:00:10]} 57. f3 {[%clk 0:00:08]}  Kf4 {[%clk 0:00:10]} 58. Bd7 {[%clk 0:00:08]}  Bg3 {[%clk 0:00:09]} 59. Bc8 {[%clk 0:00:08]}  Be1 {[%clk 0:00:09]} 60. Bd7 {[%clk 0:00:08]}  Ke3 {[%clk 0:00:10]} 61. Bxf5 {[%clk 0:00:08]}  Kxe2 {[%clk 0:00:10]} 62. Be4 {[%clk 0:00:06]}  Bg3 {[%clk 0:00:10]} 63. Kg4 {[%clk 0:00:05]}  Ke3 {[%clk 0:00:11]} 64. Bg6 {[%clk 0:00:04]}  c4 {[%clk 0:00:08]} 65. dxc4 {[%clk 0:00:05]}  d3 {[%clk 0:00:09]} 66. c5 {[%clk 0:00:04]}  d2 {[%clk 0:00:08]} 67. Bc2 {[%clk 0:00:05]}  Kd4 {[%clk 0:00:08]} 68. c6 {[%clk 0:00:05]}  Kc5 {[%clk 0:00:08]} 69. Ba4 {[%clk 0:00:04]}  Kd6 {[%clk 0:00:08]} 70. f4 {[%clk 0:00:04]}  Bxf4 {[%clk 0:00:05]} 71. Kxf4 {[%clk 0:00:04]}  h3 {[%clk 0:00:05]} 72. Kg3 {[%clk 0:00:04]}  d1=Q {[%clk 0:00:06]} 73. Bxd1 {[%clk 0:00:05]}  Kxc6 {[%clk 0:00:06]} 74. Kh2 {[%clk 0:00:06]}  Kc5 {[%clk 0:00:07]} 75. Kxh3 {[%clk 0:00:07]} 1/2-1/2


[Site "https://www.chess.com"]

[Event "Early Titled Tuesday Blitz | February 8 2022"]
[White "Eynullayev, Altay"]
[Black "Pinheiro, Iung Alicio de O."]
[WhiteFideId "13413562"]
[BlackFideId "2104350"]
[WhiteElo "2079"]
[BlackElo "2601"]
[Result "0-1"]
[Round "10"]
[TimeControl "180+1"]
[Date "2022.02.08"]
[WhiteClock "0:00:21"]
[BlackClock "0:00:20"]

1. e4 {[%clk 0:03:00]}  c6 {[%clk 0:02:58]} 2. d4 {[%clk 0:03:00]}  d5 {[%clk 0:02:58]} 3. e5 {[%clk 0:03:00]}  Bf5 {[%clk 0:02:57]} 4. Nf3 {[%clk 0:03:00]}  e6 {[%clk 0:02:57]} 5. Be2 {[%clk 0:03:00]}  Nd7 {[%clk 0:02:56]} 6. O-O {[%clk 0:02:59]}  h6 {[%clk 0:02:56]} 7. Nbd2 {[%clk 0:02:59]}  Ne7 {[%clk 0:02:56]} 8. Nb3 {[%clk 0:02:59]}  Bh7 {[%clk 0:02:57]} 9. a4 {[%clk 0:02:59]}  Ng6 {[%clk 0:02:57]} 10. a5 {[%clk 0:02:56]}  a6 {[%clk 0:02:58]} 11. c4 {[%clk 0:02:53]}  Be7 {[%clk 0:02:57]} 12. Be3 {[%clk 0:02:46]}  O-O {[%clk 0:02:57]} 13. g3 {[%clk 0:02:44]}  f6 {[%clk 0:02:56]} 14. exf6 {[%clk 0:02:32]}  Rxf6 {[%clk 0:02:49]} 15. Re1 {[%clk 0:02:30]}  Bd6 {[%clk 0:02:48]} 16. Bf1 {[%clk 0:02:27]}  Qf8 {[%clk 0:02:43]} 17. Bg2 {[%clk 0:02:13]}  Qf7 {[%clk 0:02:40]} 18. h4 {[%clk 0:02:05]}  Rf8 {[%clk 0:02:40]} 19. h5 {[%clk 0:02:05]}  Ne7 {[%clk 0:02:37]} 20. Nc5 {[%clk 0:01:56]}  Bxc5 {[%clk 0:02:26]} 21. dxc5 {[%clk 0:01:29]}  Rxf3 {[%clk 0:02:12]} 22. Bxf3 {[%clk 0:01:29]}  Qxf3 {[%clk 0:02:13]} 23. Qxf3 {[%clk 0:01:26]}  Rxf3 {[%clk 0:02:14]} 24. Rad1 {[%clk 0:01:19]}  Be4 {[%clk 0:02:08]} 25. Bf4 {[%clk 0:01:19]}  Nf6 {[%clk 0:01:47]} 26. Bd6 {[%clk 0:01:19]}  Nf5 {[%clk 0:01:43]} 27. Be5 {[%clk 0:01:12]}  Ng4 {[%clk 0:01:42]} 28. Bd4 {[%clk 0:00:58]}  e5 {[%clk 0:00:40]} 29. cxd5 {[%clk 0:00:52]}  cxd5 {[%clk 0:00:39]} 30. Bc3 {[%clk 0:00:30]}  Rxf2 {[%clk 0:00:33]} 31. Rxe4 {[%clk 0:00:23]}  dxe4 {[%clk 0:00:34]} 32. Rd7 {[%clk 0:00:21]}  Nxg3 {[%clk 0:00:20]} 33. Rd2 {[%clk 0:00:21]}  Ne2+ {[%clk 0:00:20]} 34. Rxe2 {[%clk 0:00:21]}  Rxe2 {[%clk 0:00:20]} 0-1


[Site "https://www.chess.com"]

[Event "Early Titled Tuesday Blitz | February 8 2022"]
[White "FGHSMN"]
[Black "Khripachenko, Alexander"]
[BlackFideId "54184975"]
[WhiteElo "2771"]
[BlackElo "2177"]
[Result "1-0"]
[Round "10"]
[TimeControl "180+1"]
[Date "2022.02.08"]
[WhiteClock "0:01:12"]
[BlackClock "0:00:16"]

1. b3 {[%clk 0:02:59]}  d5 {[%clk 0:02:57]} 2. Bb2 {[%clk 0:02:58]}  Bg4 {[%clk 0:02:58]} 3. f3 {[%clk 0:02:57]}  Bh5 {[%clk 0:02:55]} 4. h4 {[%clk 0:02:56]}  Qd6 {[%clk 0:02:40]} 5. d4 {[%clk 0:02:54]}  Qg3+ {[%clk 0:02:30]} 6. Kd2 {[%clk 0:02:51]}  Nc6 {[%clk 0:02:19]} 7. e3 {[%clk 0:02:51]}  e5 {[%clk 0:02:07]} 8. Ne2 {[%clk 0:02:48]}  Qf2 {[%clk 0:02:07]} 9. Qe1 {[%clk 0:02:33]}  Qxe1+ {[%clk 0:02:06]} 10. Kxe1 {[%clk 0:02:33]}  exd4 {[%clk 0:02:07]} 11. Nxd4 {[%clk 0:02:23]}  Nxd4 {[%clk 0:02:07]} 12. Bxd4 {[%clk 0:02:22]}  Bg6 {[%clk 0:02:08]} 13. Kd2 {[%clk 0:02:17]}  h6 {[%clk 0:02:05]} 14. Nc3 {[%clk 0:02:17]}  c6 {[%clk 0:02:04]} 15. h5 {[%clk 0:02:15]}  Bh7 {[%clk 0:02:05]} 16. a4 {[%clk 0:02:11]}  Ne7 {[%clk 0:02:04]} 17. g4 {[%clk 0:02:08]}  Nc8 {[%clk 0:01:56]} 18. a5 {[%clk 0:02:06]}  Nd6 {[%clk 0:01:52]} 19. Na4 {[%clk 0:02:04]}  f5 {[%clk 0:01:46]} 20. gxf5 {[%clk 0:01:58]}  Nxf5 {[%clk 0:01:45]} 21. Be5 {[%clk 0:01:57]}  Bb4+ {[%clk 0:01:43]} 22. c3 {[%clk 0:01:56]}  Bxa5 {[%clk 0:01:35]} 23. Bd3 {[%clk 0:01:49]}  O-O {[%clk 0:01:19]} 24. Rhg1 {[%clk 0:01:42]}  Rae8 {[%clk 0:01:15]} 25. f4 {[%clk 0:01:38]}  Rf7 {[%clk 0:01:14]} 26. e4 {[%clk 0:01:20]}  dxe4 {[%clk 0:01:13]} 27. Bc4 {[%clk 0:01:19]}  Rd8+ {[%clk 0:00:50]} 28. Ke2 {[%clk 0:01:15]}  Kf8 {[%clk 0:00:15]} 29. Bxf7 {[%clk 0:01:13]}  Kxf7 {[%clk 0:00:16]} 30. b4 {[%clk 0:01:14]}  Bb6 {[%clk 0:00:15]} 31. Nxb6 {[%clk 0:01:14]}  axb6 {[%clk 0:00:15]} 32. Ra7 {[%clk 0:01:14]}  Rd7 {[%clk 0:00:16]} 33. Ra8 {[%clk 0:01:13]}  g6 {[%clk 0:00:16]} 34. Rh8 {[%clk 0:01:12]} 1-0


[Site "https://www.chess.com"]